[Event "Czech Open-GM 2022"]
[Site "Pardubice"]
[Date "2022.07.27"]
[Round "6.14"]
[White "Goroshkov, Maksym"]
[Black "Sorensen, Hampus"]
[Result "1/2-1/2"]
[ECO "B50"]
[WhiteElo "2240"]
[BlackElo "2376"]
[Annotator "TA"]
[PlyCount "110"]
[EventDate "2022.07.22"]
[EventType "swiss"]
[EventCountry "CZE"]
[SourceTitle "playchess.com"]
[Source "ChessBase"]
[SourceQuality "1"]
[TimeControl "40/5400+30:1800+30"]

{[%evp 9,110,0,0,0,0,0,9,0,0,0,7,-7,-8,-8,-12,-12,-13,-10,0,0,0,0,0,0,43,19,13,-37,-37,-36,-32,-66,27,40,34,-7,0,0,0,-54,-54,-50,-46,-54,-54,-54,-54,-54,-54,-54,-15,-62,-42,-49,-14,-16,0,-50,-28,-62,-55,-52,-55,-56,-53,-89,-89,-90,-70,-90,-90,-91,-90,-90,-90,-90,-90,-90,-90,-90,-90,-90,-90,-90,-90,-90,-90,-90,-65,-65,-65,-114,-114,-114,-114,-114,-72,-72,-72,-114,-97,-114,0]} 1. Nf3 {[%emt 0:00:10]} c5 {[%emt 0:06:35]} 2. e4 {[%emt 0:01:49]} d6 {[%emt 0:00:29]} 3. c3 {[%emt 0:03:01]} Nf6 {[%emt 0:00:36]} 4. Bc4 {[%emt 0:00:55]} e6 {[%emt 0:04:12]} 5. d3 {[%emt 0:00:21]} Be7 {[%emt 0:06:49]} 6. O-O {[%emt 0:00:25] B50: Sicilian: 2...d6, Miscellaneous.} O-O {[%emt 0:00:45]} 7. Bb3 {[%emt 0:00:05]} Nc6 {[%emt 0:05:01]} 8. h3 {[%emt 0:03:02] The position is equal.} b5 {[%emt 0:01:14]} 9. Bf4 {[%emt 0:03:26]} e5 {[%emt 0:06:17]} 10. Bg5 {[%emt 0:00:41]} Rb8 {[%emt 0:03:30]} 11. Nbd2 {[%emt 0:03:32] [#]} h6 $146 {[%emt 0:01:11]} ({Predecessor:} 11... a5 12. Re1 a4 13. Bc2 Qa5 14. c4 Nb4 15. b3 Bd7 16. cxb5 Nxc2 17. Qxc2 Bxb5 18. Nc4 Qa6 {0-1 (68) Allen,A (1927)-Sanchez,R (2036) Managua 2011}) 12. Bxf6 {[%emt 0:02:50]} Bxf6 {[%emt 0:00:17]} 13. Re1 {[%emt 0:00:11]} Be6 {[%emt 0:04:20]} 14. Nf1 {[%emt 0:01:53]} Qd7 {[%emt 0:07:17]} 15. Ne3 {[%emt 0:01:00]} Ne7 {[%emt 0:00:18]} 16. d4 {[%emt 0:01:52]} c4 {[%emt 0:06:43] And now ...exd4 would win.} 17. Bc2 {[%emt 0:01:55]} (17. d5 $5 {[%cal Rd5e6]} cxb3 18. dxe6 fxe6 19. axb3 $11) 17... Qc8 {[%emt 0:00:43]} 18. Nd5 {[%emt 0:05:12]} (18. Qd2 $11) 18... Nxd5 $15 {[%emt 0:03:54]} 19. exd5 {[%emt 0:00:23]} Bxd5 {[%emt 0:00:16]} 20. Nxe5 {[%emt 0:06:35]} Qb7 {[%emt 0:05:31]} (20... dxe5 $15 21. dxe5 Rd8 $1 22. exf6 Bxg2 $1) 21. Ng4 $11 {[%emt 0:00:34]} Bg5 {[%emt 0:00:05]} 22. Ne3 {[%emt 0:03:18]} Bxe3 {[%emt 0:00:37]} 23. Rxe3 {[%emt 0:00:05]} Rbe8 {[%emt 0:07:57]} 24. Qg4 {[%emt 0:03:09]} ({White should try} 24. Rg3 $11) 24... Rxe3 $15 {[%emt 0:02:25]} 25. fxe3 {[%emt 0:00:05]} Re8 {[%emt 0:00:25] Prevents e4.} 26. Re1 {[%emt 0:00:14]} Be4 {[%emt 0:01:16]} 27. Bxe4 {[%emt 0:00:12]} Rxe4 {[%emt 0:00:17][%mdl 4096] Endgame KQR-KQR} 28. Qf5 {[%emt 0:00:21]} d5 {[%emt 0:02:37]} 29. a3 {[%emt 0:00:19]} Re6 {[%emt 0:02:24]} (29... g6 {keeps more tension.} 30. Qf6 Qd7 31. g4 Re6) 30. Re2 {[%emt 0:00:53]} (30. Qf4 $11 {was preferrable.}) 30... a6 {[%emt 0:00:39]} 31. Qh5 {[%emt 0:01:39]} Qd7 {[%emt 0:00:40]} 32. Qf5 {[%emt 0:00:50]} Qb7 {[%emt 0:03:14]} 33. Qh5 {[%emt 0:00:05]} Kh7 {[%emt 0:05:25]} 34. Qf5+ {[%emt 0:02:17]} g6 {[%emt 0:00:57]} 35. Qf3 {[%emt 0:00:08]} Kg7 {[%emt 0:00:57]} 36. Qf4 {[%emt 0:00:45]} Qe7 {[%emt 0:00:44]} 37. Qf3 {[%emt 0:03:08] [#]} Re4 $1 {[%emt 0:00:17]} 38. Kf2 {[%emt 0:00:39]} Qe6 {[%emt 0:01:36]} 39. Ke1 {[%emt 0:01:32]} h5 {[%emt 0:04:24]} 40. Kd2 {[%emt 0:00:42]} f5 {[%emt 0:03:26]} 41. g3 {[%emt 0:32:41]} a5 {[%emt 0:33:16]} 42. h4 {[%emt 0:03:05]} Qd6 {[%emt 0:00:00]} 43. Ke1 {[%emt 0:00:00]} Kh6 {[%emt 0:00:00]} 44. Kf2 {[%emt 0:00:00]} Qe6 {[%emt 0:00:00]} 45. Kg2 {[%emt 0:00:00]} Qe7 {[%emt 0:00:00]} 46. Kf2 {[%emt 0:00:00]} Qb7 {[%emt 0:00:00]} 47. Kg2 {[%emt 0:00:00]} Kh7 {[%emt 0:00:00]} 48. Kf2 {[%emt 0:00:00]} b4 {[%emt 0:00:00]} 49. axb4 {[%emt 0:00:00]} axb4 {[%emt 0:00:00]} 50. cxb4 {[%emt 0:00:00]} (50. Qg2 $15 {is superior.}) 50... Qxb4 $17 {[%emt 0:00:00] Black is better.} 51. Kg2 {[%emt 0:00:00]} Qb3 {[%emt 0:00:00]} 52. Kf2 {[%emt 0:00:00]} Kg7 {[%emt 0:00:00]} 53. Qh1 {[%emt 0:00:00]} Qa4 {[%emt 0:00:00]} 54. Rd2 {[%emt 0:00:00]} Kf6 {[%emt 0:00:00]} 55. Re2 {[%emt 0:00:00][%cal Ob2b3]} Kg7 {Weighted Error Value: White=0.10 (very precise) /Black=0.09 (flawless)} (55... Kf7 $17 56. Qc1 Re6) 1/2-1/2

[Event "Czech Open-GM 2022"]
[Site "Pardubice"]
[Date "2022.07.27"]
[Round "6.15"]
[White "Luch, Michal"]
[Black "Smolik, Jachym"]
[Result "1-0"]
[ECO "E36"]
[WhiteElo "2375"]
[BlackElo "2291"]
[Annotator "TA"]
[PlyCount "57"]
[EventDate "2022.07.22"]
[EventType "swiss"]
[EventCountry "CZE"]
[SourceTitle "playchess.com"]
[Source "ChessBase"]
[SourceQuality "1"]
[TimeControl "40/5400+30:1800+30"]

{[%evp 10,57,4,0,32,40,41,41,33,25,47,-14,-17,-7,63,66,63,82,82,51,43,-46,-39,-33,25,-161,-21,-22,-28,-13,-33,-19,12,0,0,0,35,39,34,44,25,29,81,43,43,33,194,195,186,156]} 1. d4 {[%emt 0:00:01]} Nf6 {[%emt 0:00:06]} 2. c4 {[%emt 0:00:03]} e6 {[%emt 0:00:06]} 3. Nc3 {[%emt 0:00:02]} Bb4 {[%emt 0:00:08]} 4. Qc2 {[%emt 0:00:02]} d5 {[%emt 0:00:08]} 5. a3 {[%emt 0:00:09]} Bxc3+ {[%emt 0:00:08]} 6. Qxc3 {[%emt 0:00:02]} c5 {[%emt 0:00:49] E36: Nimzo-Indian: Classical: 4...d5 5 a3.} 7. dxc5 {[%emt 0:10:56]} d4 {[%emt 0:00:35]} 8. Qg3 {[%emt 0:00:02] The main line 8.Qg3 scores better than 8.Qc2.} Nc6 {[%emt 0:00:35] White is slightly better.} 9. Nf3 {[%emt 0:09:34]} e5 {[%emt 0:06:23]} 10. e4 {[%emt 0:10:11] is the legacy move (10.b4).} ({Better is} 10. b4 $14) 10... O-O {[%emt 0:23:27]} 11. Bd3 {[%emt 0:00:13]} Nd7 {[%emt 0:03:43]} (11... Nh5 $11 12. Qg5 Qxg5 13. Bxg5 Bg4) 12. b4 $14 {[%emt 0:14:13]} a5 $1 {[%emt 0:19:45]} 13. Rb1 {[%emt 0:21:06] White is more active.} axb4 {[%emt 0:00:16]} 14. axb4 {[%emt 0:00:01]} Ra4 {[%emt 0:01:56] [#]} 15. Bd2 $146 {[%emt 0:00:02]} (15. Bh6 $14 Qf6 16. Bd2 (16. Bg5 Qe6 $11)) ({Predecessor:} 15. Bh6 g6 16. Bxf8 Qxf8 17. O-O Nxb4 18. Nxe5 Nxc5 19. Be2 Nxe4 20. Qf4 Nc3 21. Rb2 {1-0 (32) Svane,R (2509)-Esen,B (2571) Moscow 2015}) 15... Ra3 $1 $15 {[%emt 0:04:05][%mdl 1024] Black has compensation.} 16. Bc2 {[%emt 0:00:12]} f5 {[%emt 0:10:46]} ({Black should try} 16... Nf6 $15 17. Qh4 Be6) 17. O-O $2 {[%emt 0:06:40]} (17. exf5 e4 18. Bxe4 Qe8 $17) (17. b5 $1 $11 d3 18. Bd1) 17... d3 {[%emt 0:14:58]} (17... f4 $19 18. Qg4 Nxc5 $1) 18. Bd1 $11 {[%emt 0:00:02] exf5 is the strong threat.} ({But not} 18. Bh6 Rf7 19. Rb3 (19. Bg5 $2 dxc2 20. Bxd8 cxb1=Q $19) 19... f4 $17) 18... Nf6 {[%emt 0:01:15]} 19. Bg5 $1 {[%emt 0:01:41]} f4 {[%emt 0:03:29]} ({Resist} 19... Nxe4 20. Bxd8 Nxg3 21. hxg3 $14) 20. Qh4 {[%emt 0:00:08]} Qc7 {[%emt 0:03:41]} (20... Qe8 $5 {[%cal Rh7h6]}) 21. Bxf6 {[%emt 0:05:46]} Rxf6 {[%emt 0:01:31]} 22. Qh5 {[%emt 0:01:05]} Qe7 {[%emt 0:02:52]} 23. b5 {[%emt 0:04:34]} Rh6 {[%emt 0:00:04]} 24. Qg5 {[%emt 0:00:03]} Qxg5 {[%emt 0:00:06]} 25. Nxg5 {[%emt 0:00:02]} Na5 {[%emt 0:01:35]} (25... Nd4 $11 {keeps the balance.}) 26. Nf3 {[%emt 0:00:11] aiming for Rb4.} Re6 {[%emt 0:00:06]} (26... Nxc4 $2 27. Bb3 $18) 27. Nd2 {[%emt 0:00:44] Threatens to win with Bg4.} (27. Rb4 $5 {[%cal Rb4a4]}) 27... Re8 $2 {[%emt 0:00:53] [#]} (27... Ra2 $14) 28. Bh5 $1 $18 {[%emt 0:06:08]} g6 {[%emt 0:00:07] Strongly threatening ...Ra2.} 29. Ra1 {Inhibits Ra2.  Weighted Error Value: White=0.26 (precise) /Black=0.29 (precise)} 1-0

[Event "Czech Open-GM 2022"]
[Site "Pardubice"]
[Date "2022.07.27"]
[Round "6.16"]
[White "Aradhya, Garg"]
[Black "Svanda, Ondrej"]
[Result "1-0"]
[ECO "E46"]
[WhiteElo "2229"]
[BlackElo "2363"]
[Annotator "TA"]
[PlyCount "171"]
[EventDate "2022.07.22"]
[EventType "swiss"]
[EventCountry "CZE"]
[SourceTitle "playchess.com"]
[Source "ChessBase"]
[SourceQuality "1"]
[TimeControl "40/5400+30:1800+30"]

{[%evp 11,171,0,8,-8,0,0,0,-6,11,6,0,3,29,31,13,25,20,18,65,14,33,-5,11,0,19,20,20,16,16,18,12,29,77,71,84,85,98,85,93,89,100,85,97,90,88,86,95,89,85,47,105,104,106,106,121,72,73,70,58,38,72,49,100,69,70,50,89,73,68,0,0,0,0,0,13,0,0,0,0,0,0,0,0,0,0,0,0,0,0,0,2,2,2,3,3,0,0,0,6,6,16,7,9,4,10,0,0,0,0,0,64,20,29,29,29,29,29,29,29,0,40,55,55,0,0,0,0,0,0,0,0,0,40,40,40,40,40,40,40,0,12836,12836,12837,12836,12837,12837,12836,0,12836,0,12837,12837,12835,12835,12837,12836,12836,12837,12846,12846,12847,12847]} 1. d4 Nf6 2. c4 e6 3. Nc3 Bb4 4. e3 O-O 5. Bd2 d5 6. Nf3 b6 7. Qc2 {E51: Nimzo-Indian: Rubinstein: 4...0-0 5 Nf3 d5.} Bb7 8. cxd5 exd5 9. Bd3 {The position is equal.} Nbd7 10. a3 Be7 11. b4 {[#]} a5 $146 ({Predecessor:} 11... Rc8 12. Ne5 c5 13. Nxd7 Nxd7 14. Bxh7+ Kh8 15. Bf5 Bf6 16. Qd3 g6 17. Bg4 cxd4 18. exd4 {1-0 (68) Rys,T (1902)-Leja,A (2117) Rzeszow 2008}) 12. Rb1 axb4 13. axb4 Re8 14. O-O Bf8 (14... c6 $11) 15. Rfc1 (15. Ng5 $14 g6 16. Rfc1) 15... g6 16. Ne2 Bd6 17. Bb5 Ne4 18. Be1 Rc8 19. Bc6 Bxc6 20. Qxc6 Nb8 21. Qa4 c6 (21... Nd7 $11) 22. b5 $16 {[%cal Rb5c6]} c5 {[#]} 23. dxc5 $1 Bxc5 24. Qb3 Ng5 25. Ned4 Ne4 26. Rd1 Nf6 27. Ra1 Qc7 28. Qb2 Nbd7 29. Nc6 {Against Ne5} Qd6 30. Qa2 Qf8 (30... Nb8 $14) 31. Qb3 Ra8 32. Bc3 Qd6 {Inhibits Nfe5.} 33. Nb4 {White is much more active.} (33. Bb2 $142) 33... Rxa1 34. Rxa1 Bxb4 35. Qxb4 Nc5 36. Ra7 Qb8 (36... Nfe4 $14) 37. Ra3 Nce4 38. g3 Rc8 39. Bxf6 Nxf6 40. Qe7 (40. Nd4 $14 Rc1+ 41. Kg2) 40... Qc7 $11 41. Qxc7 Rxc7 {[%mdl 4096] Endgame KRN-KRN} 42. Nd4 Ne4 43. Ra1 Rc5 44. Ra8+ Kg7 45. Ra7 Kf8 46. Kg2 Nc3 47. Rb7 Nxb5 48. Nf3 Nd6 49. Rxb6 Ne4 50. Rb2 {Against Rc2} Kg7 51. g4 h6 52. Ne5 Rc7 {Prevents Rb7.} 53. h4 Re7 54. Nc6 Rc7 55. Nd4 Ra7 56. Rc2 Ra3 57. Ne2 Ra4 58. f3 Nd6 59. Kf2 h5 60. Rc6 Ne8 ({Better is} 60... Nc4 $11) 61. Rc8 Nf6 62. g5 Ng8 63. Rc7 Kf8 64. Nd4 Ne7 65. Rb7 Nf5 66. Nxf5 gxf5 $14 {KR-KR} 67. Rd7 (67. Kg3 $14) 67... f4 $11 68. exf4 Rxf4 69. Kg3 Rd4 70. Rd6 Kg7 71. Rh6 Rd1 72. Rxh5 {[#] aiming for Rh6.} d4 73. Rh6 {Black must now prevent Rd6.} d3 {...d2 is the strong threat.} 74. Rd6 {And now h5 would win.} d2 {Threatens to win with ...Rg1+.} 75. Kg2 {Prevents Rg1+. Hoping for h5.} Kh7 $2 {[%mdl 8192]} (75... f6 $11 76. f4 (76. gxf6+ Kf7 $16) 76... Kh7) 76. h5 $18 Kg7 77. Rd8 Kh7 78. Rd7 Kg7 79. Rd8 Kh7 80. Rd6 Kg7 81. Rd7 {White is clearly winning.} Kg8 82. h6 Kh8 83. f4 {[%cal Bf3f4,Bf4f5][%mdl 32]} Kg8 84. f5 Kf8 85. g6 {g7+ would kill now.} Ke8 86. Rd3 {Weighted Error Value: White=0.09 (flawless) /Black=0.11 (very precise)} 1-0

[Event "Czech Open-GM 2022"]
[Site "Pardubice"]
[Date "2022.07.27"]
[Round "6.17"]
[White "Nemec, Jachym"]
[Black "Savitha Shri B"]
[Result "0-1"]
[ECO "D11"]
[WhiteElo "2357"]
[BlackElo "2278"]
[Annotator "TA"]
[PlyCount "128"]
[EventDate "2022.07.22"]
[EventType "swiss"]
[EventCountry "CZE"]
[SourceTitle "playchess.com"]
[Source "ChessBase"]
[SourceQuality "1"]
[TimeControl "40/5400+30:1800+30"]

{[%evp 9,128,20,31,0,-1,-22,-5,-6,-4,-11,26,17,12,-77,-93,-85,-77,-98,-90,-207,-200,-194,-198,-182,-181,-172,-174,-212,-168,-197,-189,-201,-202,-214,-210,-239,-209,-193,-165,-191,-170,-170,-162,-175,-166,-158,-154,-160,-161,-156,-176,-234,-139,-130,-117,-120,-49,-64,0,-10,0,-36,-32,-31,-31,-31,-23,-21,-23,-90,-52,-49,-45,-95,-96,-93,-89,-104,-82,-154,-156,-166,-161,-174,-167,-152,-162,-165,-170,-170,-151,-152,-111,-119,-99,-120,264,253,310,-183,-174,-174,-167,-229,-235,-225,-220,-220,-220,-240,-223,-280,-280,-272,-272,-327,-324,-313,-310,-913,-752]} 1. d4 d5 2. c4 c6 {[%cal Bc7c6,Bc6c5][%mdl 32]} 3. Nf3 Nf6 4. Qc2 e6 5. Bg5 Nbd7 6. g3 {D30: Queen's Gambit Declined: Systems without Nc3.} h6 7. Bf4 {[#]} c5 $146 ({Predecessor:} 7... Ne4 8. Bg2 Ndf6 9. O-O Be7 10. Nbd2 Nxd2 11. Nxd2 Nh5 12. Be5 O-O 13. Bf3 Nf6 14. cxd5 exd5 {1-0 (35) Lima,L (101)-Ibanez Iglesias,J (1998) Montevideo 2013}) 8. Bg2 {The position is equal.} cxd4 9. O-O Be7 10. Rd1 O-O 11. Rxd4 (11. cxd5 $11 Nxd5 12. Nxd4) 11... Bc5 $17 12. Rd1 Ng4 13. Rf1 Qb6 {And now ...e5 would win.} 14. e3 (14. cxd5 $17 {keeps fighting.} g5 15. Bd2 (15. Bxg5 $2 Bxf2+ 16. Kh1 hxg5 $19) 15... Bxf2+ 16. Kh1) 14... e5 $1 $19 15. Nxe5 Ngxe5 16. cxd5 Ng6 17. Nd2 {[%cal Bb1d2,Bd2e4,Be4c3,Bc3b5][%mdl 32]} Nxf4 18. gxf4 Qd8 19. Ne4 Bb6 20. a4 a5 21. Rfd1 Nf6 {[%cal Bd7f6,Bf6g4,Bg4e3][%mdl 32]} 22. Nc3 Ng4 23. h3 {[#]} Nxe3 {[%mdl 512]} 24. fxe3 Bxe3+ {[%cal Bb6e3,Be3f4,Bf4d6][%mdl 32]} 25. Kh1 Bxf4 {White must now prevent ...Qh4. This bishop pair is nice.} 26. Qf2 {Inhibits Qh4.} Bd6 27. Nb5 f5 28. Rd3 Rf6 29. Re1 Bd7 30. Re6 {[#]} (30. Nxd6 $142 Rxd6 31. Rc3) 30... Bxb5 ({Weaker is} 30... Bxe6 31. dxe6 Ra6 32. Qd2 $14) (30... Bc5 $1 $19 {[%mdl 512]} 31. Qf1 (31. Qf3 Bxe6) 31... Qf8) 31. axb5 $17 Rc8 32. Rd1 {Against Rc1} f4 (32... Rc5 $17 33. Qe2 Kh7) 33. Qe2 Rf8 (33... b6 $15) 34. Bf3 {[%cal Oe6h6]} Rc7 35. Qg2 Rf6 {Inhibits Qg6.} 36. Qe2 Re7 {Prevents Re8+.} 37. Re1 Rexe6 (37... Qc8 {feels hotter.} 38. Bg4 f3 39. Rxe7 fxe2 40. Bxc8 Rf1+) 38. dxe6 Qe7 39. Qc4 (39. Qe4 $11) 39... Rf8 40. Rd1 {[%cal Od1d6] Strongly threatening Rxd6!} Kh8 $1 41. Qd5 (41. Qe4 $15) 41... Bb4 42. Qe4 Qh4 $36 {[%mdl 2048] Black is on the roll.} 43. Bg2 Be7 {[%cal Of4f3] aiming for ...f3!} 44. Rf1 ({White should try} 44. Bf1) 44... b6 45. b3 Qg5 46. Qd5 Qf6 47. Qe4 Bd6 48. Qe2 Re8 49. Bd5 Qf5 50. Qf3 Rc8 51. Rd1 Qe5 {Hoping for ...Rc3.} 52. Qe4 Qb2 $2 {[%mdl 8192]} (52... Qc3 $17 {and life is bright.} 53. Qf5 g6) 53. e7 $18 Re8 (53... Qe5 $2 54. Qxe5 Bxe5 55. Bf7 $18) 54. Qf3 $4 {[%mdl 8192]} (54. Qg6 $18 {is the narrow road to win.} Rxe7 55. Qxd6) 54... Rxe7 {( -> ...Re2)} 55. Bc4 {Against Re2. Qa8+ would kill now.} Qe5 56. Qc6 (56. h4 {was worth a try.}) 56... Bc7 $19 {[%cal Of4f3] Threatens to win with ...f3!} 57. Qf3 Re8 58. Bf7 Rf8 ({Stronger than} 58... Qxb5 59. Bxe8 Qxe8 60. Rd4 $11) 59. Bc4 Bd6 60. Qd5 {[#]} Qxd5+ 61. Rxd5 Bc5 62. Kg2 f3+ 63. Kf1 f2 64. Kg2 $2 (64. h4) 64... f1=Q+ {Weighted Error Value: White=0.34/Black=0.22 (precise)} 0-1

[Event "Czech Open-GM 2022"]
[Site "Pardubice"]
[Date "2022.07.27"]
[Round "6.18"]
[White "Kusa, Jakub"]
[Black "Gloser, David"]
[Result "1/2-1/2"]
[ECO "D30"]
[WhiteElo "2353"]
[BlackElo "2221"]
[Annotator "TA"]
[PlyCount "45"]
[EventDate "2022.07.22"]
[EventType "swiss"]
[EventCountry "CZE"]
[SourceTitle "playchess.com"]
[Source "ChessBase"]
[SourceQuality "1"]
[TimeControl "40/5400+30:1800+30"]

{[%evp 10,45,0,0,0,-16,-16,-16,-13,-16,0,-13,0,0,20,22,18,17,33,18,21,0,0,0,0,-16,-13,-19,-19,-26,-16,-21,0,-35,0,-31,0,-21]} 1. d4 {[%emt 0:00:04]} d5 {[%emt 0:00:04]} 2. c4 {[%emt 0:00:28]} e6 {[%emt 0:00:04]} 3. Nf3 {[%emt 0:00:07]} Nf6 {[%emt 0:00:22]} 4. g3 {[%emt 0:00:15]} Bb4+ {[%emt 0:00:34]} 5. Nbd2 {[%emt 0:00:38]} dxc4 {[%emt 0:03:20]} 6. Bg2 {[%emt 0:00:51]} b5 {[%emt 0:03:11] Against Qa4. E04: Open Catalan: 5 Nf3.} 7. O-O {[%emt 0:02:05][%cal Od2c4]} O-O {[%emt 0:02:42]} 8. a4 {[%emt 0:00:30]} c6 {[%emt 0:01:54]} 9. Ne1 {[%emt 0:01:01][%cal Bf3e1,Be1c2,Bc2e3,Be3c4][%mdl 32]} Nd5 {[%emt 0:02:56][%cal Bf6d5,Bd5e7,Be7f5][%mdl 32]} ({But not} 9... Qxd4 10. Nc2 Qc5 11. axb5 $14) 10. Nc2 {[%emt 0:00:44]} Bxd2 {[%emt 0:03:43]} 11. Bxd2 {[%emt 0:02:12] [#]} a5 $146 {[%emt 0:00:35]} ({Predecessor:} 11... Bb7 12. e4 Ne7 13. Qe1 Nd7 14. Ba5 Qc8 15. Qe3 a6 16. Rad1 Re8 17. Na3 c5 18. axb5 axb5 19. Nxb5 Rxa5 {½-½ (31) Papaioannou,I (2592)-Nielsen,P (2681) Eretria 2011}) 12. e4 {[%emt 0:07:40][%mdl 1024] White has compensation.} Ne7 {[%emt 0:01:40]} 13. Qh5 {[%emt 0:11:42]} b4 {[%emt 0:10:31]} 14. Rfd1 {[%emt 0:04:31]} Ba6 {[%emt 0:06:03]} 15. Ne3 {[%emt 0:10:49]} Nd7 {[%emt 0:05:04][%cal Bb8d7,Bd7f6,Bf6d5][%mdl 32]} 16. Bf1 {[%emt 0:09:05]} f5 {[%emt 0:05:26] aiming for ...Nf6.} 17. exf5 {[%emt 0:10:20]} Nxf5 {[%emt 0:00:47]} 18. Nxc4 {[%emt 0:02:15]} Nf6 {[%emt 0:03:18]} 19. Qh3 {[%emt 0:01:38]} Nd5 {[%emt 0:09:34]} (19... Qxd4 $2 20. Bxb4 $1 {[%mdl 512]} axb4 21. Rxd4 Nxd4 22. Ne5 $16) 20. Qg4 {[%emt 0:04:18]} Nf6 {[%emt 0:05:55][%csl LRd4,LRg4] Pair of Knights!} (20... Bxc4 $5 21. Bxc4 Qf6 $11) 21. Qh3 {[%emt 0:01:42]} Nd5 {[%emt 0:01:49]} (21... Qxd4 $2 {[#]} 22. Bxb4 $1 {[%mdl 512]} axb4 23. Rxd4 Nxd4 24. Ne5 $16) 22. Qg4 $1 {[%emt 0:00:32]} Nf6 {[%emt 0:00:05]} (22... Bxc4 $5 23. Bxc4 Qf6 $15) 23. Qh3 {[%emt 0:00:10] An interesting draw.  Weighted Error Value: White=0.04 (flawless) /Black=0.07 (flawless)} 1/2-1/2